bitfinex/quotes_SOLUSD_20230404
["timestamp","ask_amount","ask_price","bid_price","bid_amount"]
[1680606702765,20.0,20.829,20.816,17.0]
[1680606703065,117.0001,20.83,20.816,17.0]
[1680606705056,117.0001,20.83,20.816,24.24624739]
[1680606705269,117.0001,20.83,20.817,20.0]
[1680606705489,117.0001,20.83,20.818,17.0]
[1680606705666,79.3393,20.845,20.818,17.0]
[1680606705852,119.3413,20.844,20.82,43.66]
[1680606706052,119.3413,20.844,20.821,37.0]
[1680606706267,20.0,20.843,20.821,44.24624739]
[1680606706471,20.0,20.843,20.822,7.24624739]
[1680606706766,20.0,20.843,20.823,37.0]
[1680606707460,139.3413,20.844,20.823,44.24624739]
[1680606707461,119.3413,20.844,20.823,44.24624739]
[1680606707653,85.2412,20.856,20.823,44.24624739]
[1680606707974,116.1548,20.855,20.83,43.59]
[1680606708160,20.0,20.84,20.831,37.0]
[1680606708560,20.0,20.84,20.831,20.0]
[1680606709855,20.0,20.84,20.821,20.0]
[1680606710158,20.0,20.84,20.823,20.0]
[1680606710351,20.0,20.84,20.824,17.0]
[1680606710558,20.0,20.84,20.825,20.0]
[1680606710760,20.0,20.84,20.826,17.0]
[1680606711172,20.0,20.84,20.827,27.24624739]
[1680606711361,20.0,20.84,20.828,17.0]
[1680606712061,20.0,20.84,20.827,20.0]
[1680606712262,20.0,20.84,20.828,17.0]
[1680606713280,20.0,20.84,20.828,24.24624739]
[1680606713465,20.0,20.84,20.83,43.73]
[1680606713665,20.0,20.84,20.831,17.0]
[1680606713868,20.0,20.84,20.832,20.0]
[1680606714179,20.0,20.84,20.834,20.0]
[1680606714362,20.0,20.84,20.832,27.24624739]
[1680606714763,20.0,20.84,20.833,17.0]
[1680606714964,20.0,20.84,20.834,20.0]
[1680606715179,20.0,20.84,20.835,17.0]
[1680606715375,20.0,20.84,20.834,20.0]
[1680606715583,20.0,20.84,20.831,20.0]
[1680606716882,20.0,20.84,20.832,17.0]
[1680606717079,20.0,20.84,20.833,20.0]
[1680606717282,20.0,20.84,20.834,37.0]
[1680606718077,20.0,20.84,20.835,20.0]
[1680606718385,20.0,20.84,20.836,17.0]
[1680606719077,20.0,20.84,20.834,20.0]
[1680606719467,20.0,20.84,20.835,20.0]
[1680606719966,20.0,20.84,20.834,20.0]
[1680606721069,20.0,20.84,20.835,20.0]
[1680606721985,20.0,20.84,20.835,19.9177727]
[1680606722385,20.0,20.84,20.836,17.0]
[1680606724679,20.0,20.84,20.834,20.0]
[1680606724895,20.0,20.84,20.832,20.0]
[1680606726270,20.0,20.84,20.833,17.0]
[1680606726488,20.0,20.84,20.834,20.0]
[1680606726689,20.0,20.84,20.832,20.0]
[1680606727387,20.0,20.84,20.831,20.0]
[1680606727689,20.0,20.84,20.832,7.24624739]
[1680606727890,20.0,20.84,20.833,20.0]
[1680606728393,20.0,20.84,20.834,17.0]
[1680606728580,20.0,20.84,20.835,20.0]
[1680606728782,20.0,20.84,20.836,17.0]
[1680606729180,20.0,20.84,20.833,20.0]
[1680606729386,20.0,20.84,20.831,20.0]
[1680606729595,20.0,20.84,20.83,54.8]
[1680606730191,20.0,20.84,20.831,20.0]
[1680606730890,20.0,20.84,20.832,20.0]
[1680606731188,20.0,20.854,20.833,36.2]
[1680606731396,20.0,20.854,20.834,20.0]
[1680606731578,20.0,20.854,20.835,17.0]
[1680606731978,20.0,20.854,20.834,20.0]
[1680606732277,20.0,20.854,20.835,17.0]
[1680606732480,20.0,20.854,20.834,20.0]
[1680606732686,20.0,20.854,20.831,20.0]
[1680606733272,20.0,20.854,20.83,54.8]
[1680606733499,54.8,20.85,20.821,89.75906642]
[1680606733799,20.0,20.849,20.821,46.25835922]
[1680606733978,37.0,20.849,20.82,54.8]
[1680606734387,37.0,20.849,20.821,7.24624739]
[1680606735194,37.0,20.849,20.822,20.0]
[1680606735393,37.0,20.849,20.821,7.24624739]
[1680606735587,37.0,20.849,20.823,7.24624739]
[1680606735788,37.0,20.849,20.82,14.3655793]
[1680606736000,37.0,20.849,20.82,7.24624739]
[1680606736381,37.0,20.849,20.816,43.5007072]
[1680606736575,37.0,20.849,20.817,37.24624739]
[1680606736991,37.0,20.849,20.818,7.24624739]
[1680606737181,37.0,20.849,20.819,20.0]
[1680606737691,37.0,20.849,20.82,7.24624739]
[1680606738092,37.0,20.849,20.821,37.0]
[1680606738484,37.0,20.849,20.822,7.24624739]
[1680606738997,37.0,20.849,20.823,20.0]
[1680606739493,37.0,20.849,20.822,7.24624739]
[1680606739494,54.8,20.84,20.816,14.51559773]
[1680606739680,149.6451,20.839,20.812,7.24624739]
[1680606739881,20.0,20.838,20.812,7.24624739]
[1680606740083,17.0,20.837,20.812,7.24624739]
[1680606740298,20.0,20.836,20.812,7.24624739]
[1680606740678,20.0,20.834,20.812,7.24624739]
[1680606740893,20.0,20.834,20.813,17.0]
[1680606741295,20.0,20.834,20.814,7.24624739]
[1680606741600,20.0,20.834,20.815,37.0]
[1680606742096,20.0,20.834,20.816,7.24624739]
[1680606742484,20.0,20.838,20.817,17.0]
[1680606742899,20.0,20.838,20.817,24.24624739]
[1680606743090,20.0,20.838,20.817,7.24624739]
[1680606743892,17.0,20.837,20.817,7.24624739]
[1680606744291,20.0,20.836,20.817,7.24624739]
[1680606744501,20.0,20.836,20.818,17.0]
[1680606744803,20.0,20.838,20.818,17.0]
[1680606744991,20.0,20.838,20.819,7.24624739]
[1680606745188,20.0,20.838,20.82,17.0]
[1680606745985,112.6451,20.839,20.82,17.0]
[1680606746191,112.6451,20.839,20.821,20.0]
[1680606746392,112.6451,20.839,20.822,17.0]
[1680606746904,112.6451,20.839,20.823,20.0]
[1680606747090,112.6451,20.839,20.824,17.0]
[1680606747403,112.6451,20.839,20.825,20.0]
[1680606747786,20.0,20.838,20.825,20.0]
[1680606748001,20.0,20.838,20.819,20.0]
[1680606748202,20.0,20.838,20.818,7.24624739]
[1680606748503,20.0,20.838,20.819,17.0]
[1680606749193,20.0,20.838,20.819,36.212]
[1680606749393,20.0,20.838,20.82,7.24624739]
[1680606749600,20.0,20.838,20.821,17.0]
[1680606749982,20.0,20.838,20.822,20.0]
[1680606750489,20.0,20.838,20.814,19.217]
[1680606750685,20.0,20.836,20.815,20.0]
[1680606751504,20.0,20.836,20.815,27.24624739]
[1680606752706,20.0,20.836,20.816,17.0]
[1680606753209,20.0,20.836,20.816,24.24624739]
[1680606754106,20.0,20.836,20.816,7.24624739]
[1680606754292,54.8,20.83,20.815,20.0]
[1680606754495,113.6366,20.829,20.813,7.24624739]
[1680606754816,20.0,20.828,20.814,20.0]
[1680606755388,20.0,20.828,20.814,27.24624739]
[1680606755989,20.0,20.828,20.815,17.0]
[1680606756190,20.0,20.828,20.814,27.24624739]
[1680606756710,20.0,20.828,20.814,20.0]
[1680606756904,20.0,20.828,20.811,20.0]
[1680606757299,20.0,20.828,20.814,7.24624739]
[1680606757487,20.0,20.828,20.815,20.0]
[1680606761297,20.0,20.828,20.816,17.0]
[1680606761906,113.6366,20.829,20.816,17.0]
[1680606762115,113.6366,20.829,20.816,24.24624739]
[1680606762706,113.6366,20.829,20.819,24.246247]
[1680606762901,54.8,20.84,20.82,37.0]
[1680606763615,20.0,20.839,20.82,37.0]
[1680606766419,118.4689,20.843,20.822,19.209]
[1680606766627,118.4689,20.843,20.823,57.0]
[1680606767398,20.0,20.842,20.823,57.0]
[1680606767809,20.0,20.842,20.823,168.2484]
[1680606768125,118.4689,20.843,20.823,148.2484]
[1680606768315,54.8,20.85,20.823,148.2484]
[1680606768517,20.0,20.848,20.823,148.2484]
[1680606769026,20.0,20.848,20.823,256.9819]
[1680606769220,17.0,20.847,20.823,256.9819]
[1680606769530,20.0,20.846,20.823,20.0]
[1680606769820,17.0,20.845,20.823,20.0]
[1680606770020,17.0,20.845,20.821,20.0]
[1680606770223,115.0454,20.844,20.821,20.0]
[1680606770417,20.0,20.842,20.821,20.0]
[1680606770925,20.0,20.842,20.822,17.0]
[1680606771222,20.0,20.842,20.823,20.0]
[1680606771424,20.0,20.842,20.824,17.0]
[1680606771926,20.0,20.842,20.825,20.0]
[1680606772122,20.0,20.842,20.826,17.0]
[1680606772721,20.0,20.842,20.825,20.0]
[1680606772901,20.0,20.842,20.821,20.0]
[1680606773102,20.0,20.842,20.822,17.0]
[1680606773308,20.0,20.842,20.823,20.0]
[1680606773511,20.0,20.842,20.824,17.0]
[1680606774025,20.0,20.842,20.825,20.0]
[1680606777634,20.0,20.842,20.825,39.207]
[1680606777816,20.0,20.842,20.826,17.0]
[1680606778215,20.0,20.842,20.825,20.0]
[1680606778424,20.0,20.842,20.824,20.0]
[1680606780421,20.0,20.839,20.82,19.211]
[1680606781614,20.0,20.839,20.818,114.2012]
[1680606781929,17.0,20.838,20.815,62.7167072]
[1680606782231,17.0,20.838,20.815,19.216]
[1680606783326,17.0,20.838,20.816,17.0]
[1680606784231,20.0,20.837,20.816,17.0]
[1680606784430,17.0,20.836,20.816,17.0]
[1680606785327,133.8734,20.836,20.816,17.0]
[1680606786022,20.0,20.835,20.816,17.0]
[1680606786329,116.8734,20.836,20.819,19.213]
[1680606786520,116.8734,20.836,20.82,17.0]
[1680606786720,116.8734,20.836,20.819,19.213]
[1680606787315,20.0,20.835,20.819,19.213]
[1680606789330,20.0,20.835,20.815,19.216]
[1680606789532,20.0,20.835,20.816,17.0]
[1680606791435,119.838,20.834,20.816,17.0]
[1680606791637,119.838,20.834,20.812,123.73054739]
[1680606791931,20.0,20.833,20.813,20.0]
[1680606792318,20.0,20.833,20.813,27.24624739]
[1680606793018,20.0,20.833,20.814,17.0]
[1680606793217,20.0,20.833,20.815,20.0]
[1680606793432,20.0,20.833,20.818,20.0]
[1680606793630,116.8734,20.836,20.818,20.0]
[1680606793815,108.2385,20.841,20.82,41.19]
[1680606794020,108.2385,20.841,20.821,20.0]
[1680606794336,20.0,20.84,20.822,17.0]
[1680606794539,20.0,20.84,20.823,20.0]
[1680606795348,108.2385,20.841,20.824,17.0]
[1680606795568,108.2385,20.841,20.825,20.0]
[1680606795917,108.2385,20.841,20.822,20.0]
[1680606796137,20.0,20.839,20.821,20.0]
[1680606796451,20.0,20.839,20.818,20.0]
[1680606796650,17.0,20.838,20.818,20.0]
[1680606797126,20.0,20.837,20.818,20.0]
[1680606797842,20.0,20.837,20.819,17.0]
[1680606798228,20.0,20.837,20.818,34.0581177]
[1680606798432,17.0,20.836,20.818,34.0581177]
[1680606799143,20.0,20.835,20.818,34.0581177]
[1680606802141,20.0,20.835,20.819,17.0]
[1680606802644,20.0,20.835,20.818,34.0581177]
[1680606803333,20.0,20.835,20.819,17.0]
[1680606805945,53.58463379,20.843,20.819,17.0]
[1680606805946,81.72,20.85,20.82,41.19]
[1680606806131,40.82,20.85,20.821,57.0]
[1680606806443,110.9625,20.847,20.821,64.24624739]
[1680606807140,110.9625,20.847,20.824,19.208]
[1680606807454,110.9625,20.847,20.825,37.0]
[1680606808139,20.0,20.844,20.825,37.0]
[1680606808346,110.9625,20.847,20.825,37.0]
[1680606809044,20.0,20.844,20.825,37.0]
[1680606809432,110.9625,20.847,20.825,37.0]
[1680606810053,110.9625,20.847,20.826,20.0]
[1680606810239,110.9625,20.847,20.827,17.0]
[1680606810746,110.9625,20.847,20.825,20.0]
[1680606810747,110.9625,20.847,20.826,17.0]
[1680606811637,20.0,20.844,20.826,17.0]
[1680606814455,20.0,20.843,20.818,88.80991537]
[1680606814642,40.82,20.84,20.82,51.40139502]
[1680606814838,37.0,20.839,20.82,51.40139502]
[1680606815157,20.0,20.838,20.818,14.0581177]
[1680606815450,128.6966,20.837,20.81,41.19]
[1680606815651,17.0,20.837,20.81,41.19]
[1680606815854,20.0,20.836,20.81,41.19]
[1680606816037,17.0,20.835,20.81,41.19]
[1680606816855,20.0,20.834,20.81,41.19]
[1680606817852,20.0,20.834,20.816,17.0]
[1680606818357,20.0,20.834,20.81,41.19]
[1680606819352,17.0,20.833,20.81,41.19]
[1680606819652,17.0,20.833,20.813,44.24624739]
[1680606819857,20.0,20.832,20.813,44.24624739]
[1680606820662,20.0,20.832,20.814,7.24624739]
[1680606820843,20.0,20.832,20.815,37.0]
[1680606821357,20.0,20.832,20.82,38.415632]
[1680606822963,17.0,20.831,20.82,38.415632]
[1680606823763,20.0,20.83,20.82,38.415632]
[1680606824561,20.0,20.829,20.82,38.415632]
[1680606824763,37.0,20.829,20.82,38.415632]
[1680606825058,20.0,20.828,20.82,38.415632]
[1680606825263,17.0,20.827,20.82,38.415632]
[1680606826360,20.0,20.828,20.82,38.415632]
[1680606827646,17.0,20.827,20.82,38.415632]
[1680606827846,20.0,20.828,20.82,38.415632]
[1680606829355,17.0,20.827,20.82,38.415632]
[1680606830848,20.0,20.828,20.82,38.415632]
[1680606834478,17.0,20.827,20.82,38.415632]
[1680606835456,19.207,20.825,20.82,38.415632]
[1680606835770,20.0,20.823,20.82,38.415632]
[1680606836064,20.0,20.823,20.794,19.236]
[1680606836275,40.87,20.82,20.803,20.0]
[1680606836763,20.0,20.819,20.803,20.0]
[1680606837454,20.0,20.819,20.803,27.24624739]
[1680606837851,37.0,20.818,20.803,7.24624739]
[1680606838055,37.0,20.818,20.796,112.4401]
[1680606838663,20.0,20.817,20.796,112.4401]
[1680606838854,17.0,20.816,20.796,112.4401]
[1680606839763,20.0,20.815,20.796,112.4401]
[1680606839972,20.0,20.815,20.801,126.76924674]
[1680606842166,20.0,20.817,20.801,126.76924674]
[1680606842371,14.25361594,20.827,20.802,44.24624739]
[1680606842550,108.4492,20.827,20.802,44.24624739]
[1680606842756,20.0,20.826,20.803,20.0]
[1680606842956,20.0,20.826,20.806,19.224]
[1680606843356,20.0,20.826,20.807,17.0]
[1680606843567,20.0,20.826,20.808,20.0]
[1680606843770,20.0,20.826,20.809,17.0]
[1680606844472,108.4492,20.827,20.809,17.0]
[1680606845360,108.4492,20.827,20.808,17.0]
[1680606845672,20.0,20.826,20.808,17.0]
[1680606848251,108.4492,20.827,20.808,17.0]
[1680606848454,108.4492,20.827,20.808,24.24624739]
[1680606848653,108.4492,20.827,20.809,20.0]
[1680606848870,108.4492,20.827,20.81,17.0]
[1680606849370,20.0,20.826,20.809,17.0]
[1680606851569,108.4492,20.827,20.809,17.0]
[1680606853562,20.0,20.826,20.809,17.0]
[1680606854058,20.0,20.835,20.81,41.19]
[1680606854264,119.8514,20.833,20.811,17.0]
[1680606854460,20.0,20.835,20.813,20.0]
[1680606854665,20.0,20.835,20.814,37.0]
[1680606855072,20.0,20.835,20.814,44.24624739]
[1680606855274,20.0,20.835,20.815,7.24624739]
[1680606855586,20.0,20.835,20.816,37.0]
[1680606856580,20.0,20.835,20.817,20.0]
[1680606856763,20.0,20.835,20.818,17.0]
[1680606859178,20.0,20.835,20.82,41.19]
[1680606859481,20.0,20.835,20.822,20.0]
[1680606859660,20.0,20.835,20.823,17.0]
[1680606860081,20.0,20.835,20.821,17.0]
[1680606860374,20.0,20.835,20.815,110.1168]
[1680606860576,19.2,20.833,20.815,110.1168]
[1680606860974,17.0,20.832,20.815,110.1168]
[1680606861368,20.0,20.831,20.815,110.1168]
[1680606863077,77.87,20.83,20.815,110.1168]
[1680606863487,20.0,20.829,20.812,110.2823]
[1680606863700,20.0,20.827,20.816,0.68600872]
[1680606863984,20.0,20.826,20.816,0.68600872]
[1680606864365,20.0,20.824,20.816,0.68600872]
[1680606864783,17.0,20.825,20.807,116.8947]
[1680606864983,20.0,20.826,20.807,116.8947]
[1680606865283,20.0,20.826,20.807,124.14094739]
[1680606865478,20.0,20.825,20.807,124.14094739]
[1680606865680,20.0,20.825,20.817,0.68513154]
[1680606865985,20.0,20.826,20.817,0.68513154]
[1680606866483,20.0,20.825,20.817,0.68513154]
[1680606866685,20.0,20.825,20.808,17.0]
[1680606867785,20.0,20.825,20.818,0.68425445]
[1680606868891,20.0,20.825,20.808,17.0]
[1680606869689,20.0,20.825,20.819,0.68337744]
[1680606870684,20.0,20.825,20.808,17.0]
[1680606871675,20.0,20.825,20.82,0.68250052]
[1680606871980,20.0,20.823,20.82,0.68250052]
[1680606872694,20.0,20.823,20.807,124.14094739]
[1680606873078,20.0,20.823,20.808,17.0]
[1680606873397,20.0,20.826,20.809,20.0]
[1680606873589,20.0,20.826,20.821,0.68162368]
[1680606874796,20.0,20.826,20.81,17.0]
[1680606875294,20.0,20.826,20.81,20.0]
[1680606875470,20.0,20.826,20.811,17.0]
[1680606875672,20.0,20.826,20.822,0.68074693]
[1680606876196,20.0,20.825,20.822,0.68074693]
[1680606876700,20.0,20.825,20.809,17.0]
[1680606877703,20.0,20.825,20.823,0.67987025]
[1680606878194,20.0,20.825,20.823,0.00987025]
[1680606878393,17.0,20.824,20.823,0.00987025]
[1680606878792,17.0,20.824,20.799,67.08871201]
[1680606879179,20.0,20.823,20.805,7.24624739]
[1680606880481,17.0,20.822,20.805,7.24624739]
[1680606880881,20.0,20.821,20.805,7.24624739]
[1680606881688,20.0,20.821,20.807,124.14094739]
[1680606882404,20.0,20.821,20.808,17.0]
[1680606883686,20.0,20.821,20.807,7.24624739]
[1680606887093,20.0,20.821,20.802,20.0]
[1680606887094,77.87,20.82,20.802,20.0]
[1680606887903,20.0,20.818,20.802,20.0]
[1680606888114,20.0,20.816,20.802,20.0]
[1680606888487,17.0,20.815,20.802,20.0]
[1680606889794,20.0,20.814,20.802,20.0]
[1680606890010,17.0,20.813,20.802,20.0]
[1680606891107,20.0,20.812,20.802,20.0]
[1680606891291,20.0,20.81,20.802,20.0]
[1680606891492,17.0,20.809,20.802,20.0]
[1680606894109,20.0,20.808,20.802,20.0]
[1680606894313,17.0,20.807,20.802,20.0]
[1680606894609,20.0,20.806,20.802,20.0]
[1680606898003,20.0,20.805,20.802,20.0]
[1680606898207,20.0,20.805,20.795,14.62791569]
[1680606898515,20.0,20.805,20.79,119.0803]
[1680606898714,20.0,20.805,20.792,7.24624739]
[1680606898915,20.0,20.805,20.782,20.0]
[1680606898916,36.227,20.804,20.782,20.0]
[1680606899121,36.227,20.804,20.783,20.0]
[1680606899616,17.0,20.804,20.783,27.24624739]
[1680606900024,17.0,20.804,20.784,20.0]
[1680606900025,20.0,20.803,20.784,20.0]
[1680606900203,17.0,20.802,20.785,20.0]
[1680606900403,17.0,20.802,20.785,27.24624739]
[1680606900721,20.0,20.806,20.786,7.24624739]
[1680606901023,39.21966125,20.84,20.79,61.19]
[1680606901024,116.2324,20.809,20.79,61.19]
[1680606901203,41.19,20.82,20.791,20.0]
[1680606901513,41.19,20.82,20.792,17.0]
[1680606901514,111.7895,20.819,20.792,17.0]
[1680606901700,111.7895,20.819,20.793,20.0]
[1680606901900,20.0,20.818,20.795,20.0]
[1680606902096,20.0,20.818,20.796,17.0]
[1680606902518,20.0,20.817,20.796,24.24624739]
[1680606902724,20.0,20.817,20.798,20.0]
[1680606902902,20.0,20.817,20.799,17.0]
[1680606903103,20.0,20.817,20.799,24.24624739]
[1680606903321,20.0,20.817,20.8,7.24624739]
[1680606903620,20.0,20.818,20.8,7.24624739]
[1680606903810,20.0,20.818,20.801,17.0]
[1680606904009,20.0,20.818,20.802,20.0]
[1680606904210,20.0,20.818,20.801,111.0969]
[1680606904407,20.0,20.818,20.8,7.24624739]
[1680606904623,20.0,20.818,20.79,111.0969]
[1680606904624,20.0,20.818,20.793,20.0]
[1680606905000,20.0,20.817,20.793,20.0]
[1680606905402,17.0,20.816,20.793,20.0]
[1680606905622,17.0,20.816,20.793,27.24624739]
[1680606905925,20.0,20.815,20.793,27.24624739]
[1680606906226,17.0,20.814,20.793,27.24624739]
[1680606906606,20.0,20.813,20.793,27.24624739]
[1680606906809,17.0,20.812,20.793,27.24624739]
[1680606907324,17.0,20.812,20.794,17.0]
[1680606907620,17.0,20.812,20.795,20.0]
[1680606908021,40.87,20.81,20.792,14.65752275]
[1680606908220,40.87,20.81,20.79,111.0969]
[1680606908410,37.0,20.809,20.79,111.0969]
[1680606908724,20.0,20.808,20.79,111.0969]
[1680606908919,17.0,20.807,20.79,111.0969]
[1680606909216,20.0,20.806,20.79,125.67066677]
[1680606909608,17.0,20.805,20.79,125.67066677]
[1680606909807,17.0,20.805,20.79,132.91691416]
[1680606910013,20.0,20.806,20.79,132.91691416]
[1680606910216,20.0,20.813,20.791,20.0]
[1680606910403,131.0025,20.819,20.792,17.0]
[1680606910728,20.0,20.818,20.793,20.0]
[1680606910934,20.0,20.817,20.794,37.0]
[1680606911233,20.0,20.817,20.795,20.0]
[1680606911428,20.0,20.817,20.796,17.0]
[1680606912110,20.0,20.817,20.796,24.24624739]
[1680606912421,20.0,20.816,20.796,24.24624739]
[1680606913608,20.0,20.818,20.796,24.24624739]
[1680606916427,108.83,20.826,20.803,44.24624739]
[1680606916629,108.83,20.826,20.804,7.24624739]
[1680606916818,108.83,20.826,20.806,20.0]
[1680606917317,108.83,20.826,20.807,17.0]
[1680606917722,392.00172773,20.839,20.807,17.0]
[1680606917921,20.0,20.833,20.81,41.19]
[1680606918338,20.0,20.833,20.811,17.0]
[1680606918711,20.0,20.833,20.812,111.1846]
[1680606918935,20.0,20.833,20.813,17.0]
[1680606919119,17.0,20.832,20.813,17.0]
[1680606919321,38.477113,20.818,20.813,17.0]
[1680606919735,1.3e-05,20.818,20.815,20.0]
[1680606920033,1.3e-05,20.818,20.816,17.0]
[1680606920437,1.3e-05,20.818,20.816,24.24624739]
[1680606921830,1.3e-05,20.818,20.817,20.0]
[1680606922017,1.3e-05,20.818,20.817,37.0]
[1680606922218,1.3e-05,20.818,20.817,44.24624739]
[1680606924632,1.3e-05,20.818,20.817,64.24624739]
[1680606926336,1.3e-05,20.818,20.817,57.0]
[1680606926732,20.0,20.843,20.818,20.0]
[1680606926922,20.0,20.843,20.821,19.21]
[1680606927122,41.19,20.85,20.821,19.21]
[1680606927333,20.0,20.848,20.823,20.0]
[1680606927526,20.0,20.847,20.824,20.0]
[1680606927842,20.0,20.846,20.824,27.24624739]
[1680606928132,20.0,20.846,20.825,7.24624739]
[1680606928337,20.0,20.846,20.824,20.0]
[1680606928535,20.0,20.847,20.824,20.0]
[1680606928832,20.0,20.846,20.825,17.0]
[1680606929247,20.0,20.846,20.825,24.24624739]
[1680606929425,20.0,20.846,20.826,7.24624739]
[1680606929621,20.0,20.846,20.827,17.0]
[1680606930026,20.0,20.846,20.827,24.24624739]
[1680606930727,20.0,20.846,20.828,20.0]
[1680606930941,20.0,20.846,20.829,17.0]
[1680606931746,20.0,20.846,20.828,17.0]
[1680606932622,20.0,20.846,20.828,24.24624739]
[1680606933133,20.0,20.846,20.828,7.24624739]
[1680606933440,20.0,20.846,20.829,17.0]
[1680606933638,20.0,20.847,20.829,17.0]
[1680606934031,20.0,20.848,20.829,17.0]
[1680606934527,40.0,20.848,20.829,17.0]
[1680606934730,20.0,20.848,20.829,24.24624739]
[1680606935135,116.4386,20.849,20.829,43.44924739]
[1680606935334,116.4386,20.849,20.83,61.19]
[1680606935524,20.0,20.848,20.832,20.0]
[1680606935740,20.0,20.848,20.83,41.19]
[1680606935930,20.0,20.848,20.831,17.0]
[1680606936631,20.0,20.848,20.832,20.0]
[1680606936832,20.0,20.848,20.833,17.0]
[1680606937542,20.0,20.848,20.832,20.0]
[1680606937742,20.0,20.848,20.833,17.0]
[1680606939435,20.0,20.848,20.829,20.0]
[1680606940838,20.0,20.848,20.83,17.0]
[1680606943531,20.0,20.848,20.831,20.0]
[1680606943736,20.0,20.848,20.832,17.0]
[1680606944558,20.0,20.848,20.83,17.0]
[1680606945443,20.0,20.848,20.831,20.0]
[1680606945659,20.0,20.848,20.832,17.0]
[1680606946544,20.0,20.848,20.833,20.0]
[1680606946774,38.416106,20.854,20.833,20.0]
[1680606946775,38.416106,20.854,20.84,41.19]
[1680606947067,25.519106,20.854,20.841,20.0]
[1680606947366,25.519106,20.854,20.842,17.0]
[1680606947540,109.9505,20.878,20.842,17.0]
[1680606947541,108.3611,20.875,20.843,20.0]
[1680606947861,108.3611,20.875,20.85,41.19]
[1680606948171,108.3611,20.875,20.851,20.0]
[1680606948459,108.3611,20.875,20.853,20.0]
[1680606948761,108.3611,20.875,20.854,20.0]
[1680606949349,108.3611,20.875,20.855,20.0]
[1680606950558,20.0,20.874,20.855,20.0]
[1680606950860,20.0,20.874,20.856,17.0]
[1680606951065,20.0,20.874,20.853,20.0]
[1680606951250,20.0,20.874,20.854,17.0]
[1680606951562,40.0,20.874,20.851,20.0]
[1680606951750,20.0,20.874,20.851,20.0]
[1680606951942,17.0,20.873,20.851,27.24624739]
[1680606952257,108.3611,20.875,20.851,105.44620502]
[1680606952849,108.3611,20.875,20.852,17.0]
[1680606953055,108.3611,20.875,20.853,20.0]
[1680606953371,108.3611,20.875,20.855,20.0]